fUSD/lending_fUSD_20240628
["ID","MTS","AMOUNT","RATE_DAILY","PERIOD"]
[330542732,1719561124865,-648.91,0.00020547,2]
[330542733,1719561124875,-978.5,0.00020547,2]
[330542734,1719561124884,-2869.58,0.00020547,2]
[330542735,1719561124894,-595.54,0.00020547,2]
[330542736,1719561124904,-762.46,0.00020547,2]
[330542737,1719561124914,-638.08,0.00020547,2]
[330542738,1719561124923,-526.25,0.00020547,2]
[330542739,1719561124934,-500.0,0.00020547,2]
[330542740,1719561124944,-780.19,0.00020547,2]
[330542741,1719561124953,-855.45,0.00020547,2]
[330542742,1719561124963,-1000.0,0.00020547,2]
[330542743,1719561124973,-1166.4,0.00020547,2]
[330542744,1719561124982,-779.68,0.00020547,2]
[330542745,1719561124992,-12184.84,0.00020547,2]
[330542746,1719561125002,-1703.63,0.00020547,2]
[330542747,1719561125011,-783.91,0.00020547,2]
[330542748,1719561125021,-4108.34,0.00020547,2]
[330542749,1719561125030,-655.17,0.00020547,2]
[330542750,1719561125039,-500.0,0.00020547,2]
[330542751,1719561125049,-577.58,0.00020547,2]
[330542752,1719561125059,-1494.47,0.00020547,2]
[330542753,1719561125069,-1812.77,0.00020547,2]
[330542754,1719561125078,-1434.26,0.00020547,2]
[330542755,1719561125088,-500.0,0.00020547,2]
[330542756,1719561125097,-500.0,0.00020547,2]
[330542757,1719561125106,-803.64,0.00020547,2]
[330542758,1719561125116,-8612.7,0.00020547,2]
[330542759,1719561125125,-500.0,0.00020547,2]
[330542760,1719561125135,-500.0,0.00020547,2]
[330542761,1719561125144,-2570.43,0.00020547,2]
[330542762,1719561125154,-2233.3,0.00020547,2]
[330542763,1719561125163,-564.9,0.00020547,2]
[330542764,1719561125172,-833.81,0.00020547,2]
[330542765,1719561125181,-7571.09,0.00020547,2]
[330542766,1719561125191,-651.19,0.00020547,2]
[330542767,1719561125200,-990.66,0.00020547,2]
[330542768,1719561125210,-500.0,0.00020547,2]
[330542769,1719561125220,-1393.07,0.00020547,2]
[330542770,1719561125230,-500.0,0.00020547,2]
[330542771,1719561125239,-500.0,0.00020547,2]
[330542772,1719561125248,-795.17,0.00020547,2]
[330542773,1719561125257,-1571.82,0.00020547,2]
[330542774,1719561125267,-803.77,0.00020547,2]
[330542775,1719561125277,-2442.19,0.00020547,2]
[330542776,1719561125286,-500.0,0.00020547,2]
[330542777,1719561125295,-500.0,0.00020547,2]
[330542778,1719561125305,-500.0,0.00020547,2]
[330542779,1719561125314,-500.0,0.00020547,2]
[330542780,1719561125323,-500.0,0.00020547,2]
[330542781,1719561125332,-1017.76,0.00020547,2]
[330542782,1719561125342,-985.98,0.00020547,2]
[330542783,1719561125351,-3900.49,0.00020547,2]
[330542784,1719561125360,-623.56,0.00020547,2]
[330542785,1719561125369,-500.0,0.00020547,2]
[330542786,1719561125378,-510.44,0.00020547,2]
[330542787,1719561125387,-3571.61,0.00020547,2]
[330542788,1719561125397,-3626.35,0.00020547,2]
[330542789,1719561125406,-673.35,0.00020547,2]
[330542790,1719561125416,-974.54,0.00020547,2]
[330542791,1719561125425,-500.0,0.00020547,2]
[330542792,1719561125435,-500.0,0.00020547,2]
[330542793,1719561125444,-914.91,0.00020547,2]
[330542794,1719561125453,-4977.96,0.00020547,2]
[330542795,1719561125463,-1975.34,0.00020547,2]
[330542796,1719561125473,-306.43851985,0.00020547,2]
[330542797,1719561125482,-668.22,0.00020547,2]
[330542798,1719561125491,-4103.33,0.00020547,2]
[330542799,1719561125500,-929.98,0.00020547,2]
[330542800,1719561125510,-690.61,0.00020547,2]
[330542801,1719561125519,-2114.11,0.00020547,2]
[330542802,1719561125529,-500.0,0.00020547,2]
[330542803,1719561125538,-1444.66,0.00020547,2]
[330542804,1719561125548,-1628.46,0.00020547,2]
[330542805,1719561125557,-933.49,0.00020547,2]
[330542806,1719561125567,-2888.25,0.00020547,2]
[330542807,1719561125577,-500.0,0.00020547,2]
[330542808,1719561125587,-3537.73,0.00020547,2]
[330542809,1719561125596,-1270.72,0.00020547,2]
[330542810,1719561125606,-1988.26,0.00020547,2]
[330542811,1719561125615,-500.0,0.00020547,2]
[330542812,1719561125624,-646.8,0.00020547,2]
[330542813,1719561125634,-3537.83,0.00020547,2]
[330542814,1719561125643,-1016.96,0.00020547,2]
[330542815,1719561125652,-500.0,0.00020547,2]
[330542816,1719561125663,-500.0,0.00020547,2]
[330542817,1719561125672,-4400.98,0.00020547,2]
[330542818,1719561125681,-768.32,0.00020547,2]
[330542819,1719561125692,-588.73,0.00020547,2]
[330542820,1719561125701,-6545.79,0.00020547,2]
[330542821,1719561125710,-1070.33,0.00020547,2]
[330542822,1719561125720,-743.46,0.00020547,2]
[330542823,1719561125729,-892.56,0.00020547,2]
[330542824,1719561125739,-1231.54,0.00020547,2]
[330542825,1719561125867,-500.0,0.00020547,2]
[330542826,1719561125876,-895.8,0.00020547,2]
[330542827,1719561125885,-500.0,0.00020547,2]
[330542828,1719561125897,-2097.83,0.00020547,2]
[330542829,1719561125907,-500.0,0.00020547,2]
[330542830,1719561125916,-500.0,0.00020547,2]
[330542831,1719561125925,-3334.25,0.00020547,2]
[330542832,1719561125936,-3150.03,0.00020547,2]
[330542833,1719561125946,-500.0,0.00020547,2]
[330542834,1719561125956,-610.61,0.00020547,2]
[330542835,1719561125966,-500.0,0.00020547,2]
[330542836,1719561125975,-500.0,0.00020547,2]
[330542837,1719561125984,-1099.72,0.00020547,2]
[330542838,1719561125993,-500.0,0.00020547,2]
[330542839,1719561126003,-1552.28,0.00020547,2]
[330542840,1719561126012,-500.0,0.00020547,2]
[330542841,1719561126022,-735.24,0.00020547,2]
[330542842,1719561126031,-1827.69,0.00020547,2]
[330542843,1719561126040,-2422.64,0.00020547,2]
[330542844,1719561126050,-3657.77,0.00020547,2]
[330542845,1719561126059,-500.0,0.00020547,2]
[330542846,1719561126068,-500.0,0.00020547,2]
[330542847,1719561126077,-14987.84,0.00020547,2]
[330542848,1719561126087,-2088.49,0.00020547,2]
[330542849,1719561126096,-561.79,0.00020547,2]
[330542850,1719561126105,-500.0,0.00020547,2]
[330542851,1719561126114,-500.0,0.00020547,2]
[330542852,1719561126123,-1894.39,0.00020547,2]
[330542853,1719561126132,-890.94,0.00020547,2]
[330542854,1719561126141,-1243.28,0.00020547,2]
[330542855,1719561126151,-500.0,0.00020547,2]
[330542856,1719561126161,-2029.23,0.00020547,2]
[330542857,1719561126171,-1128.27,0.00020547,2]
[330542858,1719561126181,-500.0,0.00020547,2]
[330542859,1719561126190,-604.19,0.00020547,2]
[330542860,1719561126199,-2561.23,0.00020547,2]
[330542861,1719561126208,-500.0,0.00020547,2]
[330542862,1719561126218,-1302.81,0.00020547,2]
[330542863,1719561126227,-2467.25,0.00020547,2]
[330542864,1719561126237,-500.0,0.00020547,2]
[330542865,1719561126246,-580.74,0.00020547,2]
[330542866,1719561126256,-2378.96,0.00020547,2]
[330542867,1719561126265,-519.05,0.00020547,2]
[330542868,1719561126276,-696.42,0.00020547,2]
[330542869,1719561126286,-1077.61,0.00020547,2]
[330542870,1719561126296,-3444.9,0.00020547,2]
[330542871,1719561126305,-500.0,0.00020547,2]
[330542872,1719561126315,-878.91,0.00020547,2]
[330542873,1719561126325,-1810.22,0.00020547,2]
[330542874,1719561126334,-500.0,0.00020547,2]
[330542875,1719561126344,-5919.42,0.00020547,2]
[330542876,1719561126354,-931.76,0.00020547,2]
[330542877,1719561126363,-500.0,0.00020547,2]
[330542878,1719561126372,-1072.86,0.00020547,2]
[330542879,1719561126382,-1058.14,0.00020547,2]
[330542880,1719561126391,-295.820001,0.00020547,2]
[330542881,1719561126401,-1191.34,0.00020547,2]
[330542882,1719561126410,-522.66765591,0.00020547,2]
[330542883,1719561126419,-500.0,0.00020547,2]
[330542884,1719561126429,-3215.98,0.00020547,2]
[330542885,1719561126438,-1586.1,0.00020547,2]
[330542886,1719561126447,-12606.71,0.00020547,2]
[330542887,1719561126457,-500.0,0.00020547,2]
[330542888,1719561126467,-687.47,0.00020547,2]
[330542889,1719561126476,-500.0,0.00020547,2]
[330542890,1719561126485,-1219.48,0.00020547,2]
[330542891,1719561126495,-500.0,0.00020547,2]
[330542892,1719561126504,-836.18,0.00020547,2]
[330542893,1719561126513,-625.82,0.00020547,2]
[330542894,1719561126524,-1319.12,0.00020547,2]
[330542895,1719561126533,-1059.97,0.00020547,2]
[330542896,1719561126543,-1041.16,0.00020547,2]
[330542897,1719561126552,-500.0,0.00020547,2]
[330542898,1719561126561,-1776.67,0.00020547,2]
[330542899,1719561126571,-500.0,0.00020547,2]
[330542900,1719561126580,-500.0,0.00020547,2]
[330542901,1719561126590,-500.0,0.00020547,2]
[330542902,1719561126599,-833.16,0.00020547,2]
[330542903,1719561126608,-500.0,0.00020547,2]
[330542904,1719561126618,-852.24,0.00020547,2]
[330542905,1719561126627,-231.2957262,0.00020547,2]
[330542906,1719561126636,-832.89,0.00020547,2]
[330542907,1719561126645,-667.48,0.00020547,2]
[330542908,1719561126655,-500.0,0.00020547,2]
[330542909,1719561126665,-500.0,0.00020547,2]
[330542910,1719561126674,-1285.7,0.00020547,2]
[330542911,1719561126684,-500.0,0.00020547,2]
[330542912,1719561126693,-1976.95,0.00020547,2]
[330542913,1719561126702,-500.0,0.00020547,2]
[330542914,1719561126712,-1115.81,0.00020547,2]
[330542915,1719561126721,-620.27,0.00020547,2]
[330542916,1719561126730,-500.0,0.00020547,2]
[330542917,1719561126739,-1542.91,0.00020547,2]
[330542918,1719561126748,-500.0,0.00020547,2]
[330542919,1719561126757,-1980.39,0.00020547,2]
[330542920,1719561126766,-1594.11,0.00020547,2]
[330542921,1719561126778,-500.0,0.00020547,2]
[330542922,1719561126787,-500.0,0.00020547,2]
[330542923,1719561126796,-1240.01,0.00020547,2]
[330542924,1719561126806,-1834.65,0.00020547,2]
[330542925,1719561126815,-1531.63,0.00020547,2]
[330542926,1719561126825,-893.21,0.00020547,2]
[330542927,1719561126833,-532.59,0.00020547,2]
[330542928,1719561126842,-1176.17,0.00020547,2]
[330542929,1719561126852,-4339.37,0.00020547,2]
[330542930,1719561126864,-1096.31,0.00020547,2]
[330542931,1719561126873,-500.0,0.00020547,2]
[330542932,1719561126883,-500.0,0.00020547,2]
[330542933,1719561126893,-500.0,0.00020547,2]
[330542934,1719561126902,-500.0,0.00020547,2]
[330542935,1719561126911,-791.78,0.00020547,2]
[330542936,1719561126921,-500.0,0.00020547,2]
[330542937,1719561126930,-500.0,0.00020547,2]
[330542938,1719561126940,-500.0,0.00020547,2]
[330542939,1719561126950,-1639.09,0.00020547,2]
[330542940,1719561126959,-1291.49,0.00020547,2]
[330542941,1719561126968,-1124.86,0.00020547,2]
[330542942,1719561126977,-504.91,0.00020547,2]
[330542943,1719561126986,-500.0,0.00020547,2]
[330542944,1719561126995,-588.38,0.00020547,2]
[330542945,1719561127003,-1924.82,0.00020547,2]
[330542946,1719561127012,-500.0,0.00020547,2]
[330542947,1719561127023,-1061.55,0.00020547,2]
[330542948,1719561127033,-500.0,0.00020547,2]
[330542949,1719561127042,-1465.35,0.00020547,2]
[330542950,1719561127051,-500.0,0.00020547,2]
[330542951,1719561127063,-2089.57,0.00020547,2]
[330542952,1719561127072,-500.0,0.00020547,2]
[330542953,1719561127081,-500.0,0.00020547,2]
[330542954,1719561127090,-734.27,0.00020547,2]
[330542955,1719561127099,-500.0,0.00020547,2]
[330542956,1719561127108,-164.51786061,0.00020547,2]
[330542957,1719561127117,-948.23,0.00020547,2]
[330542958,1719561127126,-3576.87,0.00020547,2]
[330542959,1719561127135,-500.0,0.00020547,2]
[330542960,1719561127144,-3780.4,0.00020547,2]
[330542961,1719561127154,-500.0,0.00020547,2]
[330542962,1719561127162,-500.0,0.00020547,2]
[330542963,1719561127171,-3935.43,0.00020547,2]
[330542964,1719561127180,-500.0,0.00020547,2]
[330542965,1719561127189,-500.0,0.00020547,2]
[330542966,1719561127198,-770.26,0.00020547,2]
[330542967,1719561127207,-291.14,0.00020547,2]
[330542968,1719561127216,-946.83,0.00020547,2]
[330542969,1719561127225,-500.0,0.00020547,2]
[330542970,1719561127234,-500.0,0.00020547,2]
[330542971,1719561127243,-950.23,0.00020547,2]
[330542972,1719561127252,-500.0,0.00020547,2]
[330542973,1719561127261,-1446.14,0.00020547,2]
[330542974,1719561127271,-2365.29,0.00020547,2]
[330542975,1719561127284,-500.0,0.00020547,2]
[330542976,1719561127293,-4503.97,0.00020547,2]
[330542977,1719561127302,-1659.75,0.00020547,2]
[330542978,1719561127311,-500.0,0.00020547,2]
[330542979,1719561127319,-500.0,0.00020547,2]
[330542980,1719561127329,-3311.36,0.00020547,2]
[330542981,1719561127338,-1322.58,0.00020547,2]
[330542982,1719561127346,-500.0,0.00020547,2]
[330542983,1719561127355,-500.0,0.00020547,2]
[330542984,1719561127365,-1914.45,0.00020547,2]
[330542985,1719561127374,-783.88,0.00020547,2]
[330542986,1719561127383,-500.0,0.00020547,2]
[330542987,1719561127392,-500.0,0.00020547,2]
[330542988,1719561127401,-3498.8,0.00020547,2]
[330542989,1719561127410,-1962.72,0.00020547,2]
[330542990,1719561127419,-500.0,0.00020547,2]
[330542991,1719561127428,-612.16,0.00020547,2]
[330542992,1719561127438,-500.0,0.00020547,2]
[330542993,1719561127446,-500.0,0.00020547,2]
[330542994,1719561127455,-1641.9,0.00020547,2]
[330542995,1719561127465,-500.0,0.00020547,2]
[330542996,1719561127473,-500.0,0.00020547,2]
[330542997,1719561127486,-685.98,0.00020547,2]
[330542998,1719561127495,-637.51,0.00020547,2]
[330542999,1719561127504,-3117.56,0.00020547,2]
[330543000,1719561127514,-1141.3,0.00020547,2]
[330543001,1719561127526,-500.0,0.00020547,2]
[330543002,1719561127535,-3602.08,0.00020547,2]
[330543003,1719561127544,-4395.4,0.00020547,2]
[330543004,1719561127553,-3970.07,0.00020547,2]
[330543005,1719561127562,-500.0,0.00020547,2]
[330543006,1719561127571,-2447.28,0.00020547,2]
[330543007,1719561127580,-500.0,0.00020547,2]
[330543008,1719561127589,-1264.09,0.00020547,2]
[330543009,1719561127598,-3867.01,0.00020547,2]
[330543010,1719561127607,-500.0,0.00020547,2]
[330543011,1719561127616,-8127.46,0.00020547,2]
[330543012,1719561127625,-500.0,0.00020547,2]
[330543013,1719561127634,-500.0,0.00020547,2]
[330543014,1719561127643,-764.6,0.00020547,2]
[330543015,1719561127652,-1319.29,0.00020547,2]
[330543016,1719561127661,-2955.61,0.00020547,2]
[330543017,1719561127670,-500.0,0.00020547,2]
[330543018,1719561127680,-2004.62,0.00020547,2]
[330543019,1719561127689,-2128.6,0.00020547,2]
[330543020,1719561127698,-964.57,0.00020547,2]
[330543021,1719561127707,-543.13,0.00020547,2]
[330543022,1719561127716,-500.0,0.00020547,2]
[330543023,1719561127725,-5636.27,0.00020547,2]
[330543024,1719561127734,-500.0,0.00020547,2]
[330543025,1719561127743,-4918.69,0.00020547,2]
[330543026,1719561127753,-4066.1,0.00020547,2]
[330543027,1719561127762,-664.5,0.00020547,2]
[330543028,1719561127773,-4196.26,0.00020547,2]
[330543029,1719561127782,-2426.91,0.00020547,2]
[330543030,1719561127791,-500.0,0.00020547,2]
[330543031,1719561127800,-500.0,0.00020547,2]
[330543032,1719561127808,-500.0,0.00020547,2]
[330543033,1719561127817,-571.57,0.00020547,2]
[330543034,1719561127826,-619.41,0.00020547,2]
[330543035,1719561127835,-1310.02,0.00020547,2]
[330543036,1719561127844,-3529.65,0.00020547,2]
[330543037,1719561127857,-1996.62,0.00020547,2]
[330543038,1719561127866,-790.68,0.00020547,2]
[330543039,1719561127876,-803.47,0.00020547,2]
[330543040,1719561127884,-1259.18,0.00020547,2]
[330543041,1719561127896,-500.0,0.00020547,2]
[330543042,1719561127904,-500.0,0.00020547,2]
[330543043,1719561127913,-863.97,0.00020547,2]
[330543044,1719561127922,-3541.7,0.00020547,2]
[330543045,1719561127934,-530.3,0.00020547,2]
[330543046,1719561127943,-676.52,0.00020547,2]
[330543047,1719561127952,-500.0,0.00020547,2]
[330543048,1719561127961,-7586.47,0.00020547,2]
[330543049,1719561127970,-731.62,0.00020547,2]
[330543050,1719561127980,-500.0,0.00020547,2]
[330543051,1719561127990,-1475.96,0.00020547,2]
[330543052,1719561127999,-500.0,0.00020547,2]
[330543053,1719561128008,-955.45,0.00020547,2]
[330543054,1719561128017,-1270.09,0.00020547,2]
[330543055,1719561128028,-1229.77,0.00020547,2]
[330543056,1719561128037,-500.0,0.00020547,2]
[330543057,1719561128046,-1393.57,0.00020547,2]
[330543058,1719561128055,-2329.0,0.00020547,2]
[330543059,1719561128064,-773.16,0.00020547,2]
[330543060,1719561128073,-500.0,0.00020547,2]
[330543061,1719561128082,-986.15,0.00020547,2]
[330543062,1719561128091,-1485.78,0.00020547,2]
[330543063,1719561128100,-5063.06,0.00020547,2]
[330543064,1719561128109,-500.0,0.00020547,2]
[330543065,1719561128118,-1707.42,0.00020547,2]
[330543066,1719561128127,-500.0,0.00020547,2]
[330543067,1719561128136,-768.85,0.00020547,2]
[330543068,1719561128145,-2012.41,0.00020547,2]
[330543070,1719561128154,-921.17,0.00020547,2]
[330543071,1719561128162,-500.0,0.00020547,2]
[330543072,1719561128171,-2449.33,0.00020547,2]
[330543073,1719561128180,-2037.45,0.00020547,2]
[330543074,1719561128189,-1779.04,0.00020547,2]
[330543075,1719561128197,-500.0,0.00020547,2]
[330543076,1719561128206,-9301.47,0.00020547,2]
[330543077,1719561128215,-500.0,0.00020547,2]
[330543078,1719561128224,-2900.72,0.00020547,2]
[330543079,1719561128233,-1017.79,0.00020547,2]
[330543080,1719561128242,-526.59,0.00020547,2]
[330543081,1719561128251,-500.0,0.00020547,2]
[330543082,1719561128260,-663.42,0.00020547,2]
[330543083,1719561128268,-674.65,0.00020547,2]
[330543084,1719561128280,-500.0,0.00020547,2]
[330543085,1719561128288,-1420.13,0.00020547,2]
[330543086,1719561128297,-500.0,0.00020547,2]
[330543087,1719561128306,-2537.99,0.00020547,2]
[330543088,1719561128314,-3320.06,0.00020547,2]
[330543089,1719561128323,-500.0,0.00020547,2]
[330543090,1719561128332,-1037.85,0.00020547,2]
[330543091,1719561128341,-3319.78,0.00020547,2]
[330543092,1719561128350,-500.0,0.00020547,2]
[330543093,1719561128358,-634.63,0.00020547,2]
[330543094,1719561128367,-500.0,0.00020547,2]
[330543095,1719561128375,-56773.66,0.00020547,2]
[330543096,1719561128384,-555.58,0.00020547,2]
[330543097,1719561128393,-1092.89,0.00020547,2]
[330543098,1719561128401,-500.0,0.00020547,2]
[330543099,1719561128410,-625.07,0.00020547,2]
[330543100,1719561128421,-510.63,0.00020547,2]
[330543101,1719561128430,-2200.88,0.00020547,2]
[330543102,1719561128440,-941.38,0.00020547,2]
[330543103,1719561128448,-2030.64,0.00020547,2]
[330543104,1719561128458,-670.5,0.00020547,2]
[330543105,1719561128467,-680.1,0.00020547,2]
[330543106,1719561128476,-500.0,0.00020547,2]
[330543107,1719561128485,-916.14,0.00020547,2]
[330543108,1719561128495,-1305.67,0.00020547,2]
[330543109,1719561128503,-608.88,0.00020547,2]
[330543110,1719561128513,-912.19,0.00020547,2]
[330543111,1719561128522,-2094.61,0.00020547,2]
[330543112,1719561128531,-3883.66,0.00020547,2]
[330543113,1719561128541,-624.72,0.00020547,2]
[330543114,1719561128549,-500.0,0.00020547,2]
[330543115,1719561128558,-500.0,0.00020547,2]
[330543116,1719561128568,-575.25,0.00020547,2]
[330543117,1719561128577,-1750.92,0.00020547,2]
[330543118,1719561128586,-500.0,0.00020547,2]
[330543119,1719561128595,-1644.79,0.00020547,2]
[330543120,1719561128605,-2077.02,0.00020547,2]
[330543121,1719561128614,-586.86,0.00020547,2]
[330543122,1719561128624,-500.0,0.00020547,2]
[330543123,1719561128633,-500.0,0.00020547,2]
[330543124,1719561128642,-2240.25,0.00020547,2]
[330543125,1719561128651,-785.73,0.00020547,2]
[330543126,1719561128660,-3442.26,0.00020547,2]
[330543127,1719561128669,-2119.76,0.00020547,2]
[330543128,1719561128678,-3279.62,0.00020547,2]
[330543129,1719561128687,-1783.03,0.00020547,2]
[330543130,1719561128696,-1177.19,0.00020547,2]
[330543131,1719561128705,-345.80417704,0.00020547,2]
[330543132,1719561128714,-3820.4,0.00020547,2]
[330543133,1719561128723,-2812.36,0.00020547,2]
[330543134,1719561128732,-500.0,0.00020547,2]
[330543135,1719561128741,-500.0,0.00020547,2]
[330543136,1719561128750,-500.0,0.00020547,2]
[330543137,1719561128760,-500.0,0.00020547,2]
[330543138,1719561128769,-500.0,0.00020547,2]
[330543139,1719561128783,-1875.87,0.00020547,2]
[330543140,1719561128792,-751.3,0.00020547,2]
[330543141,1719561128801,-5691.14,0.00020547,2]
[330543142,1719561128811,-500.0,0.00020547,2]
[330543143,1719561128821,-2181.6,0.00020547,2]
[330543144,1719561128830,-500.0,0.00020547,2]
[330543145,1719561128839,-4551.03,0.00020547,2]
[330543146,1719561128849,-1185.76,0.00020547,2]
[330543147,1719561128861,-500.0,0.00020547,2]
[330543148,1719561128871,-500.0,0.00020547,2]
[330543149,1719561128880,-500.0,0.00020547,2]
[330543150,1719561128890,-500.0,0.00020547,2]
[330543151,1719561128899,-500.0,0.00020547,2]
[330543152,1719561128908,-918.65,0.00020547,2]
[330543153,1719561128917,-500.0,0.00020547,2]
[330543154,1719561128927,-3480.66,0.00020547,2]
[330543155,1719561128938,-500.0,0.00020547,2]
[330543156,1719561128948,-1117.03,0.00020547,2]
[330543157,1719561128957,-710.75,0.00020547,2]
[330543158,1719561128967,-2776.49,0.00020547,2]
[330543159,1719561128976,-500.0,0.00020547,2]
[330543160,1719561128986,-5538.45,0.00020547,2]
[330543161,1719561128995,-1555.15,0.00020547,2]
[330543162,1719561129005,-5613.75,0.00020547,2]
[330543163,1719561129015,-3058.96,0.00020547,2]
[330543164,1719561129028,-500.0,0.00020547,2]
[330543165,1719561129037,-500.0,0.00020547,2]
[330543166,1719561129047,-820.14,0.00020547,2]
[330543167,1719561129058,-500.0,0.00020547,2]
[330543168,1719561129068,-825.28,0.00020547,2]
[330543169,1719561129077,-515.83,0.00020547,2]
[330543170,1719561129087,-841.57,0.00020547,2]
[330543171,1719561129097,-500.0,0.00020547,2]
[330543172,1719561129107,-4616.67,0.00020547,2]
[330543173,1719561129116,-500.0,0.00020547,2]
[330543174,1719561129125,-592.24,0.00020547,2]
[330543175,1719561129135,-500.0,0.00020547,2]
[330543176,1719561129144,-10383.18,0.00020547,2]
[330543177,1719561129154,-500.0,0.00020547,2]
[330543178,1719561129163,-1039.73,0.00020547,2]
[330543179,1719561129173,-1439.93,0.00020547,2]
[330543180,1719561129182,-887.72,0.00020547,2]
[330543181,1719561129191,-6117.5,0.00020547,2]
[330543182,1719561129200,-1863.96,0.00020547,2]
[330543183,1719561129209,-3531.61,0.00020547,2]
[330543184,1719561129219,-1143.1,0.00020547,2]
[330543185,1719561129228,-1362.09,0.00020547,2]
[330543186,1719561129236,-500.0,0.00020547,2]
[330543187,1719561129246,-500.0,0.00020547,2]
[330543188,1719561129255,-500.0,0.00020547,2]
[330543189,1719561129265,-3216.0,0.00020547,2]
[330543190,1719561129276,-23179.74,0.00020547,2]
[330543191,1719561129285,-500.0,0.00020547,2]
[330543192,1719561129294,-16559.11,0.00020547,2]
[330543193,1719561129303,-1155.64,0.00020547,2]
[330543194,1719561129312,-3529.87,0.00020547,2]
[330543195,1719561129321,-3804.04,0.00020547,2]
[330543196,1719561129330,-500.0,0.00020547,2]
[330543197,1719561129339,-850.77,0.00020547,2]
[330543198,1719561129348,-500.0,0.00020547,2]
[330543199,1719561129357,-1207.75,0.00020547,2]
[330543200,1719561129366,-504.20138513,0.00020547,2]
[330543201,1719561129375,-231.771864,0.00020547,2]
[330543202,1719561129384,-500.0,0.00020547,2]
[330543203,1719561129393,-932.07,0.00020547,2]
[330543204,1719561129403,-1059.78,0.00020547,2]
[330543205,1719561129412,-2084.87,0.00020547,2]
[330543206,1719561129421,-500.0,0.00020547,2]
[330543207,1719561129430,-2749.65,0.00020547,2]
[330543208,1719561129439,-12501.51,0.00020547,2]
[330543209,1719561129449,-547.83,0.00020547,2]
[330543210,1719561129459,-736.84,0.00020547,2]
[330543211,1719561129468,-1431.47,0.00020547,2]
[330543212,1719561129477,-500.0,0.00020547,2]
[330543213,1719561129486,-607.13,0.00020547,2]
[330543214,1719561129495,-2419.31,0.00020547,2]
[330543215,1719561129504,-694.49,0.00020547,2]
[330543216,1719561129513,-500.0,0.00020547,2]
[330543217,1719561129524,-500.0,0.00020547,2]
[330543218,1719561129533,-9353.15,0.00020547,2]
[330543219,1719561129543,-500.0,0.00020547,2]
[330543220,1719561129552,-1192.09,0.00020547,2]
[330543221,1719561129561,-500.0,0.00020547,2]
[330543222,1719561129570,-8136.93,0.00020547,2]
[330543223,1719561129580,-500.0,0.00020547,2]
[330543224,1719561129589,-14843.86,0.00020547,2]
[330543225,1719561129598,-1830.13,0.00020547,2]
[330543226,1719561129607,-500.0,0.00020547,2]
[330543227,1719561129616,-917.05,0.00020547,2]
[330543228,1719561129626,-500.0,0.00020547,2]
[330543229,1719561129636,-500.0,0.00020547,2]
[330543230,1719561129645,-1404.66,0.00020547,2]
[330543231,1719561129655,-524.36,0.00020547,2]
[330543232,1719561129665,-500.0,0.00020547,2]